Workbook

Sheet FY14 TLS Program Funding
A2: Component / Program | B2: Federal | C2: Federal NCLB | D2: General Fund | E2: GF / Mental Health | F2: GF/ Match | H2: Inter Agency Receipts | I2: MHTAAR | J2: Statutory Designated | K2: TVEP | L2: Donated Commodities | M2: Total | N2: Positions by Program PFT PPT
A3: Student and School Achievement
A4: ESEA Title 1 Grants to LEAs | C4: 37200 | M4: =SUM(B4:L4) -> 37200 | N4: 7
A5: Title I-Part C Migrant Education | C5: 7400 | M5: 7400 | N5: 5
A6: Title I-Part D Neglected & Delinquent | C6: 250 | M6: 250
A7: Title I-Part 1003(g) School & District Improvement | C7: 1500 | M7: 1500
A8: Special Education | B8: 36500 | M8: 36500 | N8: 9
A9: Special Education - Preschool | B9: 1300 | M9: 1300 | N9: 1
A10: Improving Teacher Quality | C10: 11500 | M10: 11500 | N10: 2
A11: Math and Science Partnerships | C11: 800 | M11: 800 | N11: 1
A12: Title IV 21st Century Community Learning | C12: 5714 | M12: 5714 | N12: 2
A13: State Assessments | C13: 3600 | D13: 7169.7 | M13: 10769.7 | N13: 16
A14: Language Acquisition | C14: 1100 | M14: 1100 | N14: 1
A15: Education for Homeless Children & Youth | C15: 164 | M15: 164 | N15: 1
A16: Vocational Education Career & Tech | B16: 4200 | F16: 254.2 | M16: 4454.2 | N16: 5
A17: Charter/Correspondence Schools | D17: 119.5 | M17: 119.5 | N17: 1
A18: Counseling (suicide prevention & at risk) | E18: 39.8 | M18: 39.8 | N18: 1
A19: School Health and Safety | D19: 160 | H19: 40 | M19: 200 | N19: 1
A20: Alaska Longitudinal Data System (Unity Project) | D20: =610 -> 610 | M20: 610 | N20: 2
A21: Guiding and Investing in New Special Educators for Alaska (GAINS) | B21: 700 | M21: 700
A22: Rural & Low Income | B22: 106 | M22: 106
A23: Rural Transition Services | E23: 250 | M23: 250
A24: Autism Resource Center | E24: 188 | I24: 100 | M24: 288
A25: Senate Youth | J25: 1 | M25: 1
A26: Accountability and Oversight | D26: 1500 | M26: 1500 | N26: 12
A27: Galena TVEP Grant | K27: 430.4 | M27: 430.4
A28: School Leadership (RAPPS) | J28: 134 | M28: 134
A29: Alaska Mineral & Energy Resources Education Fund- Operating | D29: 100 | M29: 100
A30: WorkKeys | D30: 414 | M30: 414 | N30: 1
A31: Jobs for America's Graduates | D31: 800 | M31: 800
A32: Iditarod Theme-based project | D32: 500 | M32: 500
A33: Statewide Literacy Program | D33: =150+320 -> 470 | M33: 470
A34: Digitization / 1:1 Inititative | D34: 5900 | M34: 5900
A35: ANSEP | D35: 960 | M35: 960
A36: Unallocated/Carryforward | B36: 13231 | C36: 28675.2 | H36: 307.5 | J36: 117.8 | M36: 42331.5
A37: Total | B37: =SUM(B3:B36) -> 56037 | C37: =SUM(C3:C36) -> 97903.2 | D37: =SUM(D3:D36) -> 18703.2 | E37: =SUM(E3:E36) -> 477.8 | F37: =SUM(F3:F36) -> 254.2 | H37: =SUM(H3:H36) -> 347.5 | I37: 100 | J37: 252.8 | K37: 430.4 | L37: 0 | M37: 174506.1 | N37: 68 | O37: 0
A41: Component / Program | B41: Federal | C41: Federal NCLB | D41: General Fund | E41: GF / Mental Health | F41: GF/ Match | G41: GF/PR | H41: Inter Agency Receipts | I41: MHTAAR | J41: Statutory Designated | K41: TVEP | L41: Donated Commodities | M41: Total | N41: Positions by Program PFT PPT
A42: State System of Support
A43: State System of Support | D43: 1950.7 | M43: =SUM(B43:L43) -> 1950.7
A44: Total | B44: =SUM(B43) -> 0 | C44: 0 | D44: 1950.7 | E44: 0 | F44: 0 | H44: 0 | I44: 0 | J44: 0 | K44: 0 | L44: =SUM(L43) -> 0 | M44: =SUM(M43) -> 1950.7 | N44: 7 | O44: =SUM(O43) -> 0
A45: Statewide Mentoring Program
A46: Statewide Mentoring Program | D46: 3000 | H46: 0 | M46: =SUM(B46:L46) -> 3000
A47: Total | B47: =SUM(B46) -> 0 | C47: 0 | D47: 3000 | E47: 0 | F47: 0 | H47: 0 | I47: 0 | J47: 0 | K47: 0 | L47: =SUM(L46) -> 0 | M47: =SUM(M46) -> 3000 | N47: =SUM(N46) -> 0 | O47: =SUM(O46) -> 0
A48: Teacher Certification
A49: Teacher Certification | D49: 10.2 | G49: 886.3 | H49: 16.4 | M49: =SUM(B49:L49) -> 912.9 | N49: 5
A50: Total | B50: =SUM(B49) -> 0 | C50: 0 | D50: 10.2 | E50: 0 | F50: 0 | G50: 886.3 | H50: 16.4 | I50: 0 | J50: 0 | K50: 0 | L50: 0 | M50: 912.9 | N50: 5 | O50: 0
A51: Child Nutrition
A52: Child Nutrition | B52: 52214.3 | D52: 31.9 | F52: 68.1 | L52: 374 | M52: =SUM(B52:L52) -> 52688.3 | N52: 9
A53: Total | B53: =SUM(B52:B52) -> 52214.3 | D53: =SUM(D52:D52) -> 31.9 | E53: 0 | F53: 68.1 | H53: 0 | I53: 0 | J53: 0 | K53: 0 | L53: =SUM(L52:L52) -> 374 | M53: =SUM(M52:M52) -> 52688.3 | N53: =SUM(N52:N52) -> 9 | O53: =SUM(O52:O52) -> 0
A54: Early Learning Coordination
A55: Early Learning Coordination | B55: 273.2 | D55: 7512.7 | M55: =SUM(B55:L55) -> 7785.9 | N55: 4
A56: Parents as Teachers | D56: 1042.5 | M56: =SUM(B56:L56) -> 1042.5
A57: Best Beginnings | D57: 937.5 | M57: 937.5
A58: Total | B58: =SUM(B55:B55) -> 273.2 | C58: 0 | D58: =SUM(D55:D57) -> 9492.7 | E58: 0 | F58: 0 | H58: 0 | I58: 0 | J58: 0 | K58: 0 | L58: =SUM(L55:L55) -> 0 | M58: =SUM(M55:M57) -> 9765.9 | N58: =SUM(N55:N55) -> 4 | O58: =SUM(O55:O55) -> 0
A59: Pre-Kindergarten Grants
A60: Pre-Kindergarten Grants | B60: 0 | D60: 2480 | M60: =SUM(B60:L60) -> 2480 | N60: 0
A61: Total | B61: =SUM(B60:B60) -> 0 | C61: 0 | D61: =SUM(D60) -> 2480 | E61: =SUM(E60:E60) -> 0 | F61: 0 | H61: =SUM(H60:H60) -> 0 | I61: 0 | J61: 0 | K61: 0 | L61: =SUM(L60:L60) -> 0 | M61: =SUM(M60:M60) -> 2480 | N61: =SUM(N60:N60) -> 0 | O61: =SUM(O60:O60) -> 0
A62: RDU Totals
A63: Student & School Achievement | B63: =B37 -> 56037 | C63: 97903.2 | D63: 18703.2 | E63: 477.8 | F63: 254.2 | G63: =G37 -> 0 | H63: 347.5 | I63: 100 | J63: 252.8 | K63: 430.4 | L63: =L37 -> 0 | M63: =SUM(B63:L63) -> 174506.1 | N63: 68 | O63: =O11 -> 0
A64: State System of Support | B64: =B44 -> 0 | C64: =C44 -> 0 | D64: 1950.7 | E64: 0 | F64: 0 | G64: 0 | H64: 0 | I64: 0 | J64: 0 | K64: 0 | L64: 0 | M64: 1950.7 | N64: 7 | O64: 0
A65: Statewide Mentoring Program | B65: =B46 -> 0 | C65: 0 | D65: 3000 | E65: 0 | F65: 0 | G65: =G46 -> 0 | H65: 0 | I65: 0 | J65: 0 | K65: 0 | L65: =L46 -> 0 | M65: 3000 | N65: 0 | O65: 0
A66: Teacher Certification | B66: =B50 -> 0 | C66: =C50 -> 0 | D66: =D50 -> 10.2 | E66: 0 | F66: 0 | G66: 886.3 | H66: 16.4 | I66: 0 | J66: 0 | K66: 0 | L66: =SUM(L50) -> 0 | M66: 912.9 | N66: =N50 -> 5 | O66: =O50 -> 0
A67: Child Nutrition | B67: =B53 -> 52214.3 | C67: 0 | D67: 31.9 | E67: 0 | F67: 68.1 | G67: =G53 -> 0 | H67: 0 | I67: 0 | J67: 0 | K67: 0 | L67: =L53 -> 374 | M67: 52688.3 | N67: =N53 -> 9 | O67: 0
A68: Early Learning Coordination | B68: =B58 -> 273.2 | C68: 0 | D68: 9492.7 | E68: 0 | F68: 0 | G68: =G58 -> 0 | H68: 0 | I68: 0 | J68: 0 | K68: 0 | L68: =L58 -> 0 | M68: 9765.9 | N68: =SUM(N58) -> 4 | O68: 0
A69: Pre-Kindergarten Grants | B69: =SUM(B60) -> 0 | C69: =SUM(C60) -> 0 | D69: 2480 | E69: 0 | F69: 0 | G69: 0 | H69: 0 | I69: 0 | J69: 0 | K69: 0 | L69: 0 | M69: 2480 | N69: =SUM(N59) -> 0 | O69: 0
A70: Total | B70: =SUM(B63:B69) -> 108524.5 | C70: =SUM(C63:C69) -> 97903.2 | D70: 35668.7 | E70: 477.8 | F70: 322.3 | G70: 886.3 | H70: 363.9 | I70: 100 | J70: 252.8 | K70: 430.4 | L70: 374 | M70: =SUM(M63:M69) -> 245303.9 | N70: =SUM(N63:N69) -> 93 | O70: =SUM(O63:O69) -> 0
